Cogmind - Beta 10 @@@ ROGUE MODE // 2020.09.19 @ 00:40:09 // AFD2018/Launchers Player: Hermelin Result: Destroyed by G-47 Trooper with Particle Gun Performance ------------- Evolutions (0) 0 Regions Visited (1) 200 Robots Destroyed (5) 25 Value Destroyed (28) 28 Prototype IDs (0) 0 Alien Tech Used (0) 0 Bonus (0) 0 TOTAL SCORE: 253 Bonus ------- None Cogmind --------- Core Integrity 0/250 Matter 25/300 Energy 100/100 System Corruption 0% Temperature Cool (9) Movement Core (100) Ox1 Location -10/Materials Parts ------- > --- POWER (1) -------- (None) > --- PROPULSION (2) --- (None) > --- UTILITY (2) ------ Small Storage Unit > --- WEAPON (2) ------- (None) > --- INVENTORY (6) ---- Light Ion Engine Light Ion Engine Compact Wheel Large Storage Unit Grenade Launcher Grenade Launcher Peak State ------------ > --- POWER ------------ Light Ion Engine > --- PROPULSION ------- Wheel Compact Wheel > --- UTILITY ---------- Small Storage Unit Seismic Analyzer > --- WEAPON ----------- Grenade Launcher Grenade Launcher > --- INVENTORY -------- (None) [Rating: 7] Favorites ----------- Power Light Ion Engine Engine Light Ion Engine Propulsion Wheel Wheel Wheel Utility Seismic Analyzer Storage Small Storage Unit Processor Seismic Analyzer Weapon Grenade Launcher Launcher Grenade Launcher Build | -11 -10 ------- Run | Scr Mat Slots Evolved . | . . Power . | . . Propulsion . | . . Utility . | . . Weapon . | . . Parts Attached 10 | 8 2 Power 1 | 1 . Engine 1 | 1 . Core . | . . Reactor . | . . Propulsion 3 | 3 . Treads . | . . Leg . | . . Wheel 3 | 3 . Hover . | . . Flight . | . . Utility 2 | 2 . Device . | . . Storage 1 | 1 . Processor 1 | 1 . Hackware . | . . Protection . | . . Artifact . | . . Weapon 4 | 2 2 Energy Gun . | . . Energy Cannon . | . . Ballistic Gun . | . . Ballistic Cannon . | . . Launcher 4 | 2 2 Special Weapon . | . . Impact Weapon . | . . Slashing Weapon . | . . Piercing Weapon . | . . Special Melee Weapon . | . . Unidentified Prototypes . | . . Parts Lost 5 | . 5 Power 1 | . 1 Propulsion 2 | . 2 Utility . | . . Weapon 2 | . 2 Highest Loss Streak 5 | . 5 Average Slot Usage (%) 87 | . 87 Engine 12 | . 12 Wheel 23 | . 23 Storage 14 | . 14 Processor 10 | . 10 Launcher 25 | . 25 Naked Turns . | . . Heaviest Build 13 | 13 13 Greatest Support 26 | 26 20 Greatest Overweight (x) 1 | 1 1 Average Overweight (x) . | . . Largest Inventory Capacity 6 | 6 6 Average Capacity 5 | 5 6 Most Carried 6 | 6 6 Average Carried 3 | 1 5 Final Capacity 6 | 6 6 Final Carried 6 | 6 6 Class Distribution -------------------- 87% | Scavenger-Mutant 12% | Mutant Dominant Class ---------------- Scavenger-Mutant | -10/Materials Resources | -11 -10 ----------- Run | Scr Mat Matter Collected 80 | 80 . Remotely . | . . Salvage Created 97 | 97 . Parts 10 | 10 . Haulers Intercepted . | . . Recyclers Shooed 1 | 1 . Parts Field Recycled . | . . Retrieved Matter . | . . Parts Self-Destructed . | . . Prevented . | . . Kills | -11 -10 ------- Run | Scr Mat Combat Hostiles Destroyed . | . . Classes Destroyed 3 | 3 . Worker 1 | 1 . Tunneler 3 | 3 . Recycler 1 | 1 . Best Kill Streak 4 | 4 . Combat Bots Only . | . . Max Kills in Single Turn 2 | 2 . Gunslinging . | . . Exploded . | . . Melee . | . . Uniques/NPCs Destroyed . | . . Combat | -11 -10 -------- Run | Scr Mat Damage Taken 513 | 33 480 Core 253 | . 253 Absorbed by Shields . | . . Core Remaining (%) 100 | 100 . Volleys Fired 5 | 5 . Largest 2 | 2 . Hottest 60 | 60 . Shots Fired 8 | 8 . Gun . | . . Cannon . | . . Launcher 8 | 8 . Special . | . . Kinetic . | . . Thermal . | . . Explosive 8 | 8 . Electromagnetic . | . . Robot Hit Streak 5 | 5 . Robot Miss Streak 1 | 1 . Penetration Max . | . . Secondary Targets . | . . Shots Hit Robots 6 | 6 . Core Hits 6 | 6 . Critical Hits . | . . Critical Kills . | . . Critical Parts Destroyed . | . . Melee Attacks . | . . Impact . | . . Slashing . | . . Piercing . | . . Sneak Attacks . | . . Combat Hostiles . | . . Follow-up Attacks . | . . Damage Inflicted 347 | 347 . Guns . | . . Cannons . | . . Explosions 347 | 347 . Melee . | . . Ramming . | . . Kinetic . | . . Thermal . | . . Explosive 347 | 347 . Electromagnetic . | . . Impact . | . . Slashing . | . . Piercing . | . . Highest Corruption . | . . Average Corruption . | . . Corruption Purged . | . . Overload Shots . | . . Overflow Damage 6 | 6 . Projectiles . | . . Explosions 6 | 6 . Melee . | . . Knockbacks . | . . Impact . | . . Kinetic . | . . Secondary . | . . Self-Inflicted Damage 33 | 33 . Shots 2 | 2 . Rammed . | . . Targets Rammed . | . . Kicked . | . . Crushed . | . . Highest Temperature . | . . Average Temperature . | . . Received Heat Transfer 162 | . 162 Siege Activations . | . . Robots Corrupted . | . . Combat Hostiles . | . . Parts Fried . | . . Impact Corruptions . | . . Robots Melted . | . . Combat Hostiles . | . . Parts Melted . | . . Heat Transferred . | . . Parts Sabotaged . | . . Parts Stolen . | . . Parts Stripped . | . . Power Chain Reactions . | . . Missiles Intercepted . | . . Alert | -11 -10 ------- Run | Scr Mat Peak Influence 46 | 25 46 Initial 16 | . 16 Average 24 | 16 30 Maximum Alert Level . | . . Low Security (%) 100 | 100 100 Level 1 . | . . Level 2 . | . . Level 3 . | . . Level 4 . | . . Level 5 . | . . High Security . | . . Max Security . | . . Squads Dispatched 2 | . 2 Investigation 1 | . 1 Extermination . | . . Reinforcement 1 | . 1 Assault . | . . Garrison . | . . Intercept . | . . Construction Impeded . | . . Haulers Reinforced . | . . Stealth | -11 -10 --------- Run | Scr Mat Distress Signals . | . . Communications Jammed . | . . Distress Signals . | . . Times Spotted 6 | . 6 Peak Tracking Total 5 | . 5 Tactical Retreats . | . . Traps | -11 -10 ------- Run | Scr Mat Traps Triggered 1 | . 1 Indirectly . | . . Trap Hack Attempts . | . . Triggered . | . . Disarmed . | . . Reprogrammed . | . . Reused . | . . Traps Extracted . | . . Installed . | . . Triggered . | . . Machines | -11 -10 ---------- Run | Scr Mat Machines Disabled . | . . Max in Single Turn . | . . Machines Sabotaged . | . . Garrisons Compromised . | . . Overloaded Fab Kills . | . . Fab Network Shutdowns . | . . Hacking | -11 -10 --------- Run | Scr Mat Machines Accessed 3 | . 3 Terminals 1 | . 1 Fabricators . | . . Repair Stations 1 | . 1 Recycling Units 1 | . 1 Scanalyzers . | . . Garrison Access . | . . Total Hacks 9 | . 9 Successful 6 | . 6 Failed 3 | . 3 Catastrophic . | . . Database Lockouts . | . . Manual 2 | . 2 Terminals 2 | . 2 Fabricators . | . . Repair Stations 5 | . 5 Recycling Units 2 | . 2 Scanalyzers . | . . Garrison Access . | . . Terminal Hacks 1 | . 1 Part Schematic 1 | . 1 Fabricator Hacks . | . . Repair Station Hacks 3 | . 3 Scan Component 1 | . 1 Repair 1 | . 1 Refit 1 | . 1 Recycling Unit Hacks 2 | . 2 Report Inventory 1 | . 1 Retrieve Components 1 | . 1 Scanalyzer . | . . Garrison Access Hacks . | . . Unauthorized Hacks . | . . Terminals . | . . Fabricators . | . . Repair Stations . | . . Recycling Units . | . . Scanalyzers . | . . Garrison Access . | . . Data Cores Recovered . | . . Used . | . . Hacking Detections 3 | . 3 Full Trace Events 1 | . 1 Feedback Events . | . . Feedback Blocked . | . . Robot Schematics Acquired . | . . Robots Built . | . . Matter . | . . Time . | . . Total Robot Build Rating . | . . Part Schematics Acquired 1 | . 1 Parts Built . | . . Matter . | . . Time . | . . Total Part Build Rating . | . . Parts Repaired 1 | . 1 Time 26 | . 26 Parts Recycled . | . . Recycled Matter . | . . Retrieved Matter . | . . Retrieved Components 1 | . 1 Parts Scanalyzed . | . . Part Schematics Acquired . | . . Parts Damaged . | . . Bothacking | -11 -10 ------------ Run | Scr Mat Used RIF Installer . | . . Robots Hacked . | . . Non-combat . | . . Combat . | . . Robot Hacks Applied . | . . Relay Couplers Released . | . . Robots Rewired . | . . Allies Hacked . | . . Hacks Repelled . | . . Allies | -11 -10 -------- Run | Scr Mat Total Allies . | . . Largest Group . | . . Highest-Rated Group . | . . Highest-Rated Ally . | . . Total Orders . | . . Ally Attacks . | . . Total Damage . | . . Kills . | . . Allies Corrupted . | . . Allies Melted . | . . Intel | -11 -10 ------- Run | Scr Mat Robot Analysis Total . | . . Derelict Logs Recovered . | . . Drone Launches . | . . Drone Recoveries . | . . Exploration | -11 -10 ------------- Run | Scr Mat Turns Passed 351 | 158 193 Spaces Moved 293 | 113 180 Core 42 | 36 6 Treads . | . . Legs . | . . Wheels 251 | 77 174 Hover . | . . Flight . | . . Fastest Speed 50 | 50 80 Average Speed 84 | 89 82 Slowest Speed 100 | 100 100 Overloaded Moves . | . . Propulsion Burnouts . | . . Robots Hopped . | . . Cave-ins Triggered . | . . Exploration Rate (%) 28 | 4 53 Regions Visited 1 Branch Regions . Pre-discovered Areas . | . . Known Exits Taken . | . . Unknown Exits Taken 1 | 1 . Scrap Searched . | . . Spaces Dug . | . . Terrain Destroyed 31 | 31 . Melee . | . . Projectile . | . . AOE 31 | 31 . Terrain Rammed . | . . Walls Destroyed . | . . Machines Disabled . | . . Actions | -11 -10 --------- Run | Scr Mat Total 385 | 159 226 Wait 63 | 27 36 Move 292 | 112 180 Hop . | . . Pick Up 9 | 6 3 Fast Attach 7 | 7 . Attach . | . . Detach 1 | . 1 Swap 3 | 1 2 Drop 5 | 1 4 Fire 5 | 5 . Melee . | . . Ram . | . . Kick . | . . Crush . | . . Escape Stasis . | . . Rewire . | . . Trap . | . . Miscellaneous . | . . Route ------- -11/Scrapyard -10/Materials (discovered 2 exits: [*Mat] / [*Min]) History --------- Turn | Location | Event 8 | -11/Scrapyard | Discovered new exit (range 15) 159 | -11/Scrapyard | Entered Materials 227 | -10/Materials | Repaired Com. Wheel 305 | -10/Materials | Build established: Scavenger-Mutant 305 | -10/Materials | Discovered new exit (range 8) 337 | -10/Materials | Core integrity fell below 50% 337 | -10/Materials | Discovered new exit (range 12) 347 | -10/Materials | Core integrity fell below 20% 352 | -10/Materials | Destroyed by G-47 Trooper with Particle Gun Last Messages --------------- 00305_ EXIT=FOUND 00307_ K-01 Serf collects debris. 00309_ Discarded Seismic Analyzer. 00309_ Dropped Lgt. Ion Engine. 00310_ Acquired Lrg. Storage Unit. 00311_ Wheel destroyed. 00312_ K-01 Serf collects debris. 00315_ U-05 Engineer lays Concrete. 00317_ K-01 Serf collects debris. 00334_ Triggered Explosive Trap. 00334_ An explosion rips through the floor. 00336_ Fusion Modulator explodes. 00336_ Grenade Launcher destroyed. 00336_ Wheel destroyed. 00336_ Backup Power I destroyed. 00336_ Atomic Centrifuge disabled. 00337_ EXIT=FOUND 00338_ K-01 Serf cleans the Atomic Centrifuge. 00350_ K-01 Serf collects debris. 00351_ U-05 Engineer lays Concrete. Map ----- +----------------------------------------------------+ | | | | | | | | | | | | | | | ?????????????????????????????????? | | ?????????????????????????????????? | | ?????????????????????????????????? | | ?????????????????????????????????? | | ?????????###?????????????????????? | | ?????????"""#????????????????????? | | ???????#"]]]"##??????????????????? | | ??????#"" ""#????????????????### | | ??????# #?#######????????# | | ??????# < ??# ########## < | | ??????# ??# | | ??????# ???# | | ???????# ???# | | ####????# #???# ########## | | # ???# ######u ##????????# | | # ??# gg ugg ###???????# | | # ?# ; #???????# | | # """ "# ; ##??????# | | # """ a ;@ ; #????? | | # """ ; ;#?????# # | | # ; ; #????### | | # """ k; ; #??????# | | # """ ; w ; #??????# | | ??""" #;;;;; ;##??????# | | ?? ] #; ;#???????# | | ?######### ;; ##???????# | | ?????????# """ ## ??????? | | ?????????# """ #? ????? | | ?????????# #? ????? | | ?????????# """ #? ######??????? | | ?????????# """ #? #???????????? | | ?????????# "?" #?? #???????????? | | ?????????# ?? #?? #???????????? | | ??????????]??? ??? ???????????? | | ?????????? ??? ?????????????????? | | ?????????????? ?????????????????? | | ????????????????????????????????? | | ????????????????????????????????? | | ?????????????????????????????????T | | ????????????????????????????????? | | ????????????????????????????????? | | ?????????????????????????????????# | | ????????????????????????########## | +----------------------------------------------------+ Best States ------------- Heat Dissipation 25 Energy Generation 10 Energy Capacity 125 Matter Stores 80 Matter Capacity 300 Sight Range 16 Terrain Scan Density 60 Evasion (%) 44 Item Schematics ----------------- Lgt. Treads | -10/Materials | Hacked Robot Schematics ------------------ None Fabricated ------------ Nothing Alien Tech Used ----------------- None Achievements -------------- None Challenges ------------ None Game ------ Seed MobileAutogunKinecellerator Manual? 0 Play Time 00:07:13 Cumulative 258.3 hours Start 2020.09.19 @ 00:35:40 End 2020.09.19 @ 00:40:09 Sessions 1 Manual Loads 0 Difficulty Rogue Special Mode AFD2018/Launchers Game No. 105 Rogue 105 Adventurer 0 Explorer 0 Win Type - Total 4 Types 3/0/0/1/0/0/0/0/0 Lore% 83 Gallery% 85 Achievement% 69 Wizard Run 0 Options --------- ASCII 0 Keyboard 0 Movement Numpad Keybinds 0 Fullscreen 1 Font 18/SmallcapsGlow Map View 76x50 Tactical HUD 1 Map Filters NONE Filters NONE Steam 1 RUN: 3e0616a5-9fc4-44c0-b69f-d521eb8773f3